[Event "Titled Tuesday Blitz August 1 Early 2023"]
[White "Namitbir Singh Walia"]
[Black "Porter, Ryan W"]
[WhiteFideId "35071068"]
[BlackFideId "2011239"]
[WhiteElo "2393"]
[BlackElo "2540"]
[Result "1-0"]
[Round "6"]
[TimeControl "180+1"]
[Date "2023.08.01"]
[WhiteClock "0:00:12"]
[BlackClock "0:00:10"]
[Board "151"]

1. e4 {[%clk 0:02:47]}  d5 {[%clk 0:02:59]} 2. exd5 {[%clk 0:02:47]}  c6 {[%clk 0:03:00]} 3. dxc6 {[%clk 0:02:47]}  Nxc6 {[%clk 0:03:01]} 4. Nf3 {[%clk 0:02:46]}  e5 {[%clk 0:03:01]} 5. d3 {[%clk 0:02:46]}  h6 {[%clk 0:03:00]} 6. Nc3 {[%clk 0:02:46]}  g5 {[%clk 0:03:00]} 7. h3 {[%clk 0:02:46]}  Bg7 {[%clk 0:03:01]} 8. Be3 {[%clk 0:02:45]}  Nge7 {[%clk 0:02:59]} 9. Qd2 {[%clk 0:02:42]}  O-O {[%clk 0:02:58]} 10. O-O-O {[%clk 0:02:29]}  Nd4 {[%clk 0:02:58]} 11. h4 {[%clk 0:02:10]}  g4 {[%clk 0:02:51]} 12. Nh2 {[%clk 0:02:08]}  Kh7 {[%clk 0:02:33]} 13. Be2 {[%clk 0:01:23]}  f5 {[%clk 0:02:30]} 14. g3 {[%clk 0:01:05]}  b5 {[%clk 0:02:21]} 15. f3 {[%clk 0:00:40]}  b4 {[%clk 0:02:16]} 16. Nb1 {[%clk 0:00:40]}  Bb7 {[%clk 0:02:03]} 17. Rhf1 {[%clk 0:00:37]}  Nxe2+ {[%clk 0:01:47]} 18. Qxe2 {[%clk 0:00:36]}  gxf3 {[%clk 0:01:47]} 19. Nxf3 {[%clk 0:00:36]}  Qa5 {[%clk 0:01:28]} 20. a3 {[%clk 0:00:19]}  bxa3 {[%clk 0:01:17]} 21. Nxa3 {[%clk 0:00:20]}  Rac8 {[%clk 0:01:14]} 22. Nd2 {[%clk 0:00:19]}  Nd5 {[%clk 0:01:08]} 23. Ndc4 {[%clk 0:00:19]}  Qb4 {[%clk 0:01:04]} 24. Bd2 {[%clk 0:00:19]}  Qc5 {[%clk 0:00:59]} 25. g4 {[%clk 0:00:19]}  f4 {[%clk 0:00:58]} 26. g5 {[%clk 0:00:18]}  Nb6 {[%clk 0:00:47]} 27. gxh6 {[%clk 0:00:17]}  Kxh6 {[%clk 0:00:37]} 28. Rg1 {[%clk 0:00:15]}  Nxc4 {[%clk 0:00:32]} 29. Nxc4 {[%clk 0:00:16]}  Rf6 {[%clk 0:00:27]} 30. Qg4 {[%clk 0:00:16]}  Rc7 {[%clk 0:00:26]} 31. Qg5+ {[%clk 0:00:16]}  Kh7 {[%clk 0:00:25]} 32. Qh5+ {[%clk 0:00:16]}  Kg8 {[%clk 0:00:21]} 33. Bc3 {[%clk 0:00:16]}  Ra6 {[%clk 0:00:16]} 34. Kb1 {[%clk 0:00:15]}  Bd5 {[%clk 0:00:14]} 35. Bxe5 {[%clk 0:00:13]}  Bxc4 {[%clk 0:00:14]} 36. dxc4 {[%clk 0:00:12]}  Qa5 {[%clk 0:00:10]} 37. Rd8# {[%clk 0:00:12]} 1-0


[Site "https://www.chess.com"]

[Event "Titled Tuesday Blitz August 1 Early 2023"]
[White "Gombocz, Ferenc Jr."]
[Black "Remolar Gallen, Jose"]
[WhiteFideId "775029"]
[BlackFideId "2215187"]
[WhiteElo "2391"]
[BlackElo "2534"]
[Result "0-1"]
[Round "6"]
[TimeControl "180+1"]
[Date "2023.08.01"]
[WhiteClock "0:00:08"]
[BlackClock "0:00:22"]
[Board "152"]

1. d4 {[%clk 0:03:00]}  Nf6 {[%clk 0:02:59]} 2. Nf3 {[%clk 0:03:00]}  g6 {[%clk 0:02:59]} 3. Bf4 {[%clk 0:03:00]}  Bg7 {[%clk 0:02:58]} 4. e3 {[%clk 0:03:00]}  O-O {[%clk 0:02:58]} 5. Be2 {[%clk 0:03:00]}  d6 {[%clk 0:02:59]} 6. h3 {[%clk 0:03:00]}  Nc6 {[%clk 0:03:00]} 7. O-O {[%clk 0:03:00]}  Nd7 {[%clk 0:03:01]} 8. Bh2 {[%clk 0:02:59]}  e5 {[%clk 0:03:01]} 9. c3 {[%clk 0:02:58]}  f5 {[%clk 0:03:01]} 10. Nbd2 {[%clk 0:02:54]}  e4 {[%clk 0:03:02]} 11. Ne1 {[%clk 0:02:53]}  Nf6 {[%clk 0:03:00]} 12. Qb3+ {[%clk 0:02:50]}  Kh8 {[%clk 0:03:00]} 13. f3 {[%clk 0:02:48]}  Qe7 {[%clk 0:02:51]} 14. d5 {[%clk 0:02:38]}  exf3 {[%clk 0:02:41]} 15. Rxf3 {[%clk 0:02:30]}  Ne5 {[%clk 0:02:41]} 16. Bxe5 {[%clk 0:02:28]}  dxe5 {[%clk 0:02:35]} 17. c4 {[%clk 0:02:15]}  b6 {[%clk 0:02:32]} 18. Rf1 {[%clk 0:02:06]}  a5 {[%clk 0:02:27]} 19. a3 {[%clk 0:01:58]}  Nd7 {[%clk 0:02:27]} 20. Nd3 {[%clk 0:01:55]}  Bh6 {[%clk 0:02:26]} 21. Nf2 {[%clk 0:01:48]}  Nc5 {[%clk 0:02:24]} 22. Qc3 {[%clk 0:01:44]}  Bg7 {[%clk 0:02:23]} 23. e4 {[%clk 0:01:43]}  a4 {[%clk 0:02:20]} 24. b4 {[%clk 0:01:38]}  axb3 {[%clk 0:02:20]} 25. Nxb3 {[%clk 0:01:38]}  Bd7 {[%clk 0:01:57]} 26. Nxc5 {[%clk 0:01:31]}  Qxc5 {[%clk 0:01:58]} 27. Qb4 {[%clk 0:01:31]}  Qe3 {[%clk 0:01:55]} 28. Bf3 {[%clk 0:01:18]}  Qg5 {[%clk 0:01:20]} 29. a4 {[%clk 0:01:11]}  Ra5 {[%clk 0:01:19]} 30. Rfc1 {[%clk 0:01:05]}  Rfa8 {[%clk 0:01:18]} 31. Bd1 {[%clk 0:00:47]}  Bf8 {[%clk 0:01:14]} 32. Qb2 {[%clk 0:00:34]}  Bd6 {[%clk 0:01:08]} 33. c5 {[%clk 0:00:16]}  bxc5 {[%clk 0:01:08]} 34. Bb3 {[%clk 0:00:16]}  Rb8 {[%clk 0:00:56]} 35. Qc3 {[%clk 0:00:16]}  Rb4 {[%clk 0:00:57]} 36. Nd3 {[%clk 0:00:14]}  Qe3+ {[%clk 0:00:53]} 37. Kh1 {[%clk 0:00:14]}  Rd4 {[%clk 0:00:26]} 38. Qxa5 {[%clk 0:00:13]}  Rxd3 {[%clk 0:00:26]} 39. Bc4 {[%clk 0:00:12]}  Rd2 {[%clk 0:00:25]} 40. Qa8+ {[%clk 0:00:12]}  Kg7 {[%clk 0:00:25]} 41. Rg1 {[%clk 0:00:09]}  fxe4 {[%clk 0:00:25]} 42. Qd8 {[%clk 0:00:08]}  Bxh3 {[%clk 0:00:23]} 43. Raf1 {[%clk 0:00:08]}  Bxg2+ {[%clk 0:00:22]} 44. Rxg2 {[%clk 0:00:09]}  Qh3+ {[%clk 0:00:22]} 45. Kg1 {[%clk 0:00:08]}  Qxg2# {[%clk 0:00:22]} 0-1


[Site "https://www.chess.com"]

[Event "Titled Tuesday Blitz August 1 Early 2023"]
[White "Mika, Tomasz"]
[Black "Golubev, Mikhail"]
[WhiteFideId "1132970"]
[BlackFideId "14100983"]
[WhiteElo "2390"]
[BlackElo "2528"]
[Result "0-1"]
[Round "6"]
[TimeControl "180+1"]
[Date "2023.08.01"]
[WhiteClock "0:00:06"]
[BlackClock "0:00:20"]
[Board "154"]

1. e4 {[%clk 0:03:00]}  c5 {[%clk 0:02:59]} 2. Nf3 {[%clk 0:03:00]}  d6 {[%clk 0:02:58]} 3. d4 {[%clk 0:03:00]}  cxd4 {[%clk 0:02:59]} 4. Nxd4 {[%clk 0:03:01]}  Nf6 {[%clk 0:02:59]} 5. Nc3 {[%clk 0:03:01]}  g6 {[%clk 0:02:59]} 6. Be3 {[%clk 0:02:49]}  Bg7 {[%clk 0:02:58]} 7. f3 {[%clk 0:02:48]}  Nc6 {[%clk 0:02:58]} 8. Qd2 {[%clk 0:02:47]}  O-O {[%clk 0:02:58]} 9. O-O-O {[%clk 0:02:47]}  d5 {[%clk 0:02:57]} 10. Nxc6 {[%clk 0:02:46]}  bxc6 {[%clk 0:02:57]} 11. Bc4 {[%clk 0:02:46]}  e6 {[%clk 0:02:54]} 12. Bb3 {[%clk 0:02:46]}  Bb7 {[%clk 0:02:54]} 13. Na4 {[%clk 0:02:44]}  Qc7 {[%clk 0:02:51]} 14. Nc5 {[%clk 0:02:42]}  a5 {[%clk 0:02:45]} 15. Bh6 {[%clk 0:02:42]}  Bxh6 {[%clk 0:01:58]} 16. Qxh6 {[%clk 0:02:41]}  a4 {[%clk 0:01:58]} 17. Nxa4 {[%clk 0:02:40]}  c5 {[%clk 0:01:55]} 18. e5 {[%clk 0:02:22]}  Nd7 {[%clk 0:01:34]} 19. c4 {[%clk 0:01:49]}  dxc4 {[%clk 0:01:06]} 20. Bc2 {[%clk 0:01:46]}  Nxe5 {[%clk 0:01:01]} 21. h4 {[%clk 0:01:28]}  Nd3+ {[%clk 0:01:00]} 22. Kb1 {[%clk 0:01:28]}  Qe5 {[%clk 0:00:45]} 23. h5 {[%clk 0:01:06]}  Rxa4 {[%clk 0:00:34]} 24. Bxd3 {[%clk 0:01:05]}  cxd3 {[%clk 0:00:27]} 25. hxg6 {[%clk 0:01:04]}  Qg7 {[%clk 0:00:27]} 26. gxh7+ {[%clk 0:00:58]}  Kh8 {[%clk 0:00:27]} 27. Qe3 {[%clk 0:00:50]}  Rb4 {[%clk 0:00:25]} 28. b3 {[%clk 0:00:47]}  Qd4 {[%clk 0:00:23]} 29. Qh6 {[%clk 0:00:44]}  Ra8 {[%clk 0:00:22]} 30. Rh4 {[%clk 0:00:06]}  Rxb3+ {[%clk 0:00:20]} 0-1


[Site "https://www.chess.com"]

[Event "Titled Tuesday Blitz August 1 Early 2023"]
[White "Rosenberg, Evan S"]
[Black "Streltsov, Alexey"]
[WhiteFideId "2019299"]
[BlackFideId "24104434"]
[WhiteElo "2389"]
[BlackElo "2520"]
[Result "1-0"]
[Round "6"]
[TimeControl "180+1"]
[Date "2023.08.01"]
[WhiteClock "0:01:18"]
[BlackClock "0:02:25"]
[Board "155"]

1. e4 {[%clk 0:03:00]}  c6 {[%clk 0:02:59]} 2. Nf3 {[%clk 0:02:58]}  d5 {[%clk 0:03:00]} 3. d3 {[%clk 0:02:58]}  g6 {[%clk 0:02:57]} 4. Nbd2 {[%clk 0:02:53]}  Bg7 {[%clk 0:02:57]} 5. g3 {[%clk 0:02:47]}  e5 {[%clk 0:02:57]} 6. Bg2 {[%clk 0:02:46]}  h6 {[%clk 0:02:55]} 7. O-O {[%clk 0:02:46]}  Be6 {[%clk 0:02:56]} 8. Re1 {[%clk 0:02:44]}  Nd7 {[%clk 0:02:56]} 9. c3 {[%clk 0:02:40]}  Ngf6 {[%clk 0:02:56]} 10. exd5 {[%clk 0:02:36]}  cxd5 {[%clk 0:02:56]} 11. Nxe5 {[%clk 0:02:35]}  Nxe5 {[%clk 0:02:51]} 12. Rxe5 {[%clk 0:02:36]}  Ne4 {[%clk 0:02:50]} 13. Rxe6+ {[%clk 0:02:33]}  fxe6 {[%clk 0:02:51]} 14. dxe4 {[%clk 0:02:34]}  O-O {[%clk 0:02:50]} 15. exd5 {[%clk 0:02:30]}  exd5 {[%clk 0:02:51]} 16. Nb3 {[%clk 0:02:23]}  Kh7 {[%clk 0:02:50]} 17. Be3 {[%clk 0:02:21]}  Qf6 {[%clk 0:02:46]} 18. Qxd5 {[%clk 0:02:08]}  Rae8 {[%clk 0:02:47]} 19. Rf1 {[%clk 0:02:08]}  b6 {[%clk 0:02:43]} 20. h4 {[%clk 0:02:03]}  Rd8 {[%clk 0:02:40]} 21. Qb7 {[%clk 0:01:57]}  Rf7 {[%clk 0:02:40]} 22. Qe4 {[%clk 0:01:53]}  Re7 {[%clk 0:02:39]} 23. Qc2 {[%clk 0:01:51]}  Qd6 {[%clk 0:02:33]} 24. h5 {[%clk 0:01:44]}  Be5 {[%clk 0:02:29]} 25. hxg6+ {[%clk 0:01:29]}  Kg7 {[%clk 0:02:29]} 26. Bd4 {[%clk 0:01:29]}  Qxg6 {[%clk 0:02:28]} 27. Qxg6+ {[%clk 0:01:28]}  Kxg6 {[%clk 0:02:29]} 28. Re1 {[%clk 0:01:23]}  Rde8 {[%clk 0:02:29]} 29. Bc6 {[%clk 0:01:18]}  Bxd4 {[%clk 0:02:25]} 30. Bxe8+ {[%clk 0:01:18]} 1-0


[Site "https://www.chess.com"]

[Event "Titled Tuesday Blitz August 1 Early 2023"]
[White "Shapiro, Viktor"]
[Black "Eggleston, Thomas A"]
[WhiteFideId "4175700"]
[BlackFideId "412139"]
[WhiteElo "2515"]
[BlackElo "2381"]
[Result "1-0"]
[Round "6"]
[TimeControl "180+1"]
[Date "2023.08.01"]
[WhiteClock "0:00:41"]
[BlackClock "0:00:09"]
[Board "157"]

1. c4 {[%clk 0:03:00]}  e6 {[%clk 0:02:56]} 2. Nc3 {[%clk 0:03:00]}  d5 {[%clk 0:02:52]} 3. d4 {[%clk 0:02:59]}  Nf6 {[%clk 0:02:51]} 4. Nf3 {[%clk 0:02:58]}  Be7 {[%clk 0:02:51]} 5. Bg5 {[%clk 0:02:57]}  h6 {[%clk 0:02:49]} 6. Bh4 {[%clk 0:02:55]}  c6 {[%clk 0:02:30]} 7. e3 {[%clk 0:02:53]}  O-O {[%clk 0:02:23]} 8. Qc2 {[%clk 0:02:46]}  dxc4 {[%clk 0:02:18]} 9. Bxc4 {[%clk 0:02:45]}  Nd5 {[%clk 0:02:14]} 10. Bg3 {[%clk 0:02:44]}  b5 {[%clk 0:02:10]} 11. Nxd5 {[%clk 0:02:32]}  exd5 {[%clk 0:02:06]} 12. Bd3 {[%clk 0:02:32]}  Bb4+ {[%clk 0:01:58]} 13. Nd2 {[%clk 0:02:23]}  Qa5 {[%clk 0:01:45]} 14. a3 {[%clk 0:02:20]}  Bb7 {[%clk 0:01:28]} 15. Rd1 {[%clk 0:02:17]}  Be7 {[%clk 0:01:21]} 16. O-O {[%clk 0:02:16]}  Nd7 {[%clk 0:01:18]} 17. Nb3 {[%clk 0:02:15]}  Qb6 {[%clk 0:01:18]} 18. Rc1 {[%clk 0:02:15]}  a5 {[%clk 0:01:17]} 19. Bf5 {[%clk 0:02:05]}  Rfd8 {[%clk 0:01:06]} 20. Rfd1 {[%clk 0:01:39]}  a4 {[%clk 0:01:05]} 21. Nc5 {[%clk 0:01:39]}  Nxc5 {[%clk 0:01:04]} 22. dxc5 {[%clk 0:01:39]}  Qa5 {[%clk 0:01:04]} 23. Be5 {[%clk 0:01:27]}  Bc8 {[%clk 0:00:57]} 24. Bd3 {[%clk 0:01:11]}  Be6 {[%clk 0:00:52]} 25. Bc3 {[%clk 0:01:09]}  Qc7 {[%clk 0:00:49]} 26. Bd4 {[%clk 0:01:10]}  Qa5 {[%clk 0:00:47]} 27. f4 {[%clk 0:01:05]}  Bg4 {[%clk 0:00:44]} 28. Rf1 {[%clk 0:01:03]}  f6 {[%clk 0:00:27]} 29. Bh7+ {[%clk 0:00:54]}  Kh8 {[%clk 0:00:27]} 30. Bg6 {[%clk 0:00:54]}  Be6 {[%clk 0:00:24]} 31. Rf3 {[%clk 0:00:47]}  Bg8 {[%clk 0:00:20]} 32. Rh3 {[%clk 0:00:45]}  Qc7 {[%clk 0:00:20]} 33. g4 {[%clk 0:00:45]}  Bf8 {[%clk 0:00:19]} 34. g5 {[%clk 0:00:43]}  fxg5 {[%clk 0:00:19]} 35. Rxh6+ {[%clk 0:00:42]}  Bh7 {[%clk 0:00:15]} 36. Rxh7+ {[%clk 0:00:42]}  Kg8 {[%clk 0:00:15]} 37. Qg2 {[%clk 0:00:41]}  gxf4 {[%clk 0:00:10]} 38. Qh3 {[%clk 0:00:41]}  fxe3 {[%clk 0:00:09]} 39. Rh8# {[%clk 0:00:41]} 1-0


[Site "https://www.chess.com"]

[Event "Titled Tuesday Blitz August 1 Early 2023"]
[White "Rodchenkov, Sergey D."]
[Black "Buscar, Michael"]
[WhiteFideId "4168712"]
[BlackFideId "2603616"]
[WhiteElo "2508"]
[BlackElo "2380"]
[Result "0-1"]
[Round "6"]
[TimeControl "180+1"]
[Date "2023.08.01"]
[WhiteClock "0:01:45"]
[BlackClock "0:00:14"]
[Board "158"]

1. e4 {[%clk 0:03:00]}  c5 {[%clk 0:01:35]} 2. Nf3 {[%clk 0:03:00]}  Nc6 {[%clk 0:01:34]} 3. d4 {[%clk 0:03:01]}  cxd4 {[%clk 0:01:35]} 4. Nxd4 {[%clk 0:03:02]}  Nf6 {[%clk 0:01:36]} 5. Nc3 {[%clk 0:03:02]}  e5 {[%clk 0:01:37]} 6. Ndb5 {[%clk 0:03:03]}  h6 {[%clk 0:01:37]} 7. Nd5 {[%clk 0:02:58]}  Nxd5 {[%clk 0:01:37]} 8. exd5 {[%clk 0:02:59]}  a6 {[%clk 0:01:38]} 9. Nc3 {[%clk 0:02:54]}  Nd4 {[%clk 0:01:37]} 10. Be3 {[%clk 0:02:47]}  Nf5 {[%clk 0:01:34]} 11. Qf3 {[%clk 0:02:39]}  Nxe3 {[%clk 0:01:33]} 12. fxe3 {[%clk 0:02:40]}  d6 {[%clk 0:01:25]} 13. Bd3 {[%clk 0:02:38]}  Qh4+ {[%clk 0:01:22]} 14. g3 {[%clk 0:02:37]}  Qg4 {[%clk 0:01:19]} 15. Qf2 {[%clk 0:02:37]}  Be7 {[%clk 0:01:17]} 16. Be2 {[%clk 0:02:38]}  Qf5 {[%clk 0:01:14]} 17. Qxf5 {[%clk 0:02:36]}  Bxf5 {[%clk 0:01:14]} 18. Kd2 {[%clk 0:02:36]}  O-O {[%clk 0:01:14]} 19. a4 {[%clk 0:02:37]}  Bd7 {[%clk 0:01:11]} 20. a5 {[%clk 0:02:34]}  Rac8 {[%clk 0:01:09]} 21. Rhf1 {[%clk 0:02:34]}  f5 {[%clk 0:01:08]} 22. b4 {[%clk 0:02:30]}  e4 {[%clk 0:00:55]} 23. Nd1 {[%clk 0:02:15]}  Bf6 {[%clk 0:00:52]} 24. c3 {[%clk 0:02:15]}  Be5 {[%clk 0:00:51]} 25. Ra3 {[%clk 0:02:16]}  g5 {[%clk 0:00:46]} 26. Nb2 {[%clk 0:02:12]}  Bb5 {[%clk 0:00:23]} 27. Bxb5 {[%clk 0:01:53]}  axb5 {[%clk 0:00:24]} 28. Nd1 {[%clk 0:01:53]}  f4 {[%clk 0:00:24]} 29. exf4 {[%clk 0:01:54]}  gxf4 {[%clk 0:00:24]} 30. gxf4 {[%clk 0:01:53]}  Bxf4+ {[%clk 0:00:24]} 31. Ke2 {[%clk 0:01:53]}  Bxh2 {[%clk 0:00:24]} 32. Rh1 {[%clk 0:01:53]}  Bf4 {[%clk 0:00:21]} 33. Nf2 {[%clk 0:01:53]}  Rfe8 {[%clk 0:00:13]} 34. Ng4 {[%clk 0:01:53]}  Kg7 {[%clk 0:00:13]} 35. a6 {[%clk 0:01:49]}  bxa6 {[%clk 0:00:13]} 36. Rxa6 {[%clk 0:01:49]}  Rxc3 {[%clk 0:00:13]} 37. Ra7+ {[%clk 0:01:50]}  Kg6 {[%clk 0:00:13]} 38. Rg1 {[%clk 0:01:40]}  Rc2+ {[%clk 0:00:12]} 39. Kf1 {[%clk 0:01:38]}  Rc1+ {[%clk 0:00:12]} 40. Kg2 {[%clk 0:01:38]}  Rxg1+ {[%clk 0:00:12]} 41. Kxg1 {[%clk 0:01:39]}  Kg5 {[%clk 0:00:12]} 42. Nf2 {[%clk 0:01:40]}  e3 {[%clk 0:00:12]} 43. Nd3 {[%clk 0:01:37]}  e2 {[%clk 0:00:12]} 44. Kf2 {[%clk 0:01:38]}  Bg3+ {[%clk 0:00:09]} 45. Kxg3 {[%clk 0:01:38]}  Re3+ {[%clk 0:00:10]} 46. Kf2 {[%clk 0:01:37]}  Rxd3 {[%clk 0:00:10]} 47. Kxe2 {[%clk 0:01:38]}  Rxd5 {[%clk 0:00:11]} 48. Rg7+ {[%clk 0:01:37]}  Kf6 {[%clk 0:00:10]} 49. Rg4 {[%clk 0:01:35]}  h5 {[%clk 0:00:10]} 50. Rh4 {[%clk 0:01:35]}  Kg5 {[%clk 0:00:10]} 51. Re4 {[%clk 0:01:35]}  Re5 {[%clk 0:00:09]} 52. Kf3 {[%clk 0:01:35]}  Rxe4 {[%clk 0:00:08]} 53. Kxe4 {[%clk 0:01:36]}  h4 {[%clk 0:00:09]} 54. Kd5 {[%clk 0:01:37]}  h3 {[%clk 0:00:09]} 55. Kxd6 {[%clk 0:01:37]}  h2 {[%clk 0:00:09]} 56. Kc5 {[%clk 0:01:38]}  h1=Q {[%clk 0:00:10]} 57. Kxb5 {[%clk 0:01:39]}  Qb7+ {[%clk 0:00:11]} 58. Kc5 {[%clk 0:01:39]}  Kf6 {[%clk 0:00:11]} 59. b5 {[%clk 0:01:40]}  Ke7 {[%clk 0:00:12]} 60. b6 {[%clk 0:01:41]}  Kd7 {[%clk 0:00:13]} 61. Kb5 {[%clk 0:01:42]}  Kd6 {[%clk 0:00:13]} 62. Ka5 {[%clk 0:01:43]}  Kc6 {[%clk 0:00:13]} 63. Kb4 {[%clk 0:01:43]}  Qxb6+ {[%clk 0:00:14]} 64. Ka3 {[%clk 0:01:44]}  Kc5 {[%clk 0:00:14]} 65. Ka4 {[%clk 0:01:45]}  Qb4# {[%clk 0:00:14]} 0-1


[Site "https://www.chess.com"]

[Event "Titled Tuesday Blitz August 1 Early 2023"]
[White "Lopez Gracia, Fernando"]
[Black "Dushyant Sharma"]
[WhiteFideId "2207184"]
[BlackFideId "25065130"]
[WhiteElo "2373"]
[BlackElo "2493"]
[Result "0-1"]
[Round "6"]
[TimeControl "180+1"]
[Date "2023.08.01"]
[WhiteClock "0:00:00"]
[BlackClock "0:00:28"]
[Board "160"]

1. e4 {[%clk 0:03:00]}  d5 {[%clk 0:02:58]} 2. exd5 {[%clk 0:03:00]}  Nf6 {[%clk 0:02:49]} 3. Bb5+ {[%clk 0:02:59]}  c6 {[%clk 0:02:49]} 4. dxc6 {[%clk 0:02:58]}  Nxc6 {[%clk 0:02:50]} 5. Nf3 {[%clk 0:02:57]}  Bg4 {[%clk 0:02:51]} 6. h3 {[%clk 0:02:52]}  Bh5 {[%clk 0:02:51]} 7. g4 {[%clk 0:02:44]}  Bg6 {[%clk 0:02:37]} 8. Nc3 {[%clk 0:02:43]}  e6 {[%clk 0:02:37]} 9. Ne5 {[%clk 0:02:40]}  Qc7 {[%clk 0:02:36]} 10. Nxc6 {[%clk 0:02:35]}  bxc6 {[%clk 0:02:37]} 11. Be2 {[%clk 0:02:33]}  Bb4 {[%clk 0:02:34]} 12. a3 {[%clk 0:02:31]}  Ba5 {[%clk 0:02:33]} 13. b4 {[%clk 0:02:26]}  Bb6 {[%clk 0:02:31]} 14. d3 {[%clk 0:02:26]}  Nd5 {[%clk 0:02:23]} 15. Nxd5 {[%clk 0:02:06]}  cxd5 {[%clk 0:02:23]} 16. c4 {[%clk 0:02:04]}  Bd4 {[%clk 0:02:14]} 17. Qa4+ {[%clk 0:01:59]}  Ke7 {[%clk 0:01:53]} 18. Ra2 {[%clk 0:01:51]}  dxc4 {[%clk 0:01:54]} 19. dxc4 {[%clk 0:01:50]}  Bb1 {[%clk 0:01:54]} 20. Rd2 {[%clk 0:01:22]}  Bc3 {[%clk 0:01:53]} 21. O-O {[%clk 0:01:20]}  Bxd2 {[%clk 0:01:44]} 22. Bxd2 {[%clk 0:01:21]}  Be4 {[%clk 0:01:43]} 23. Be3 {[%clk 0:01:17]}  f6 {[%clk 0:01:37]} 24. g5 {[%clk 0:01:08]}  e5 {[%clk 0:01:03]} 25. Rd1 {[%clk 0:00:46]}  Rhd8 {[%clk 0:01:00]} 26. Rxd8 {[%clk 0:00:41]}  Rxd8 {[%clk 0:00:52]} 27. Bc5+ {[%clk 0:00:25]}  Kf7 {[%clk 0:00:50]} 28. Qxa7 {[%clk 0:00:26]}  Qxa7 {[%clk 0:00:41]} 29. Bxa7 {[%clk 0:00:27]}  Ra8 {[%clk 0:00:42]} 30. Bb6 {[%clk 0:00:23]}  Rxa3 {[%clk 0:00:42]} 31. Kh2 {[%clk 0:00:15]}  f5 {[%clk 0:00:39]} 32. c5 {[%clk 0:00:14]}  f4 {[%clk 0:00:38]} 33. Bg4 {[%clk 0:00:12]}  Ra1 {[%clk 0:00:30]} 34. f3 {[%clk 0:00:10]}  Bc6 {[%clk 0:00:31]} 35. Kg2 {[%clk 0:00:07]}  Rb1 {[%clk 0:00:31]} 36. Ba5 {[%clk 0:00:05]}  Rb2+ {[%clk 0:00:29]} 37. Kf1 {[%clk 0:00:05]}  e4 {[%clk 0:00:30]} 38. fxe4 {[%clk 0:00:05]}  Bxe4 {[%clk 0:00:31]} 39. c6 {[%clk 0:00:05]}  Bxc6 {[%clk 0:00:31]} 40. Be2 {[%clk 0:00:02]}  f3 {[%clk 0:00:29]} 41. Bc4+ {[%clk 0:00:03]}  Kg6 {[%clk 0:00:29]} 42. Bd3+ {[%clk 0:00:02]}  Kxg5 {[%clk 0:00:29]} 43. Bd8+ {[%clk 0:00:03]}  Kf4 {[%clk 0:00:29]} 44. Be7 {[%clk 0:00:03]}  Ke3 {[%clk 0:00:29]} 45. Bxh7 {[%clk 0:00:03]}  Bb5+ {[%clk 0:00:27]} 46. Ke1 {[%clk 0:00:00]}  f2+ {[%clk 0:00:28]} 0-1


[Site "https://www.chess.com"]

[Event "Titled Tuesday Blitz August 1 Early 2023"]
[White "Girya, Olga"]
[Black "Gu, Xiaobing"]
[WhiteFideId "4195752"]
[BlackFideId "8602611"]
[WhiteElo "2490"]
[BlackElo "2373"]
[Result "0-1"]
[Round "6"]
[TimeControl "180+1"]
[Date "2023.08.01"]
[WhiteClock "0:00:03"]
[BlackClock "0:00:14"]
[Board "161"]

1. d4 {[%clk 0:03:00]}  Nf6 {[%clk 0:02:55]} 2. Nf3 {[%clk 0:03:00]}  g6 {[%clk 0:02:53]} 3. Bg5 {[%clk 0:03:00]}  Bg7 {[%clk 0:02:53]} 4. Nbd2 {[%clk 0:03:01]}  h6 {[%clk 0:02:50]} 5. Bxf6 {[%clk 0:02:55]}  Bxf6 {[%clk 0:02:49]} 6. e4 {[%clk 0:02:55]}  d6 {[%clk 0:02:48]} 7. Bc4 {[%clk 0:02:54]}  c5 {[%clk 0:02:47]} 8. e5 {[%clk 0:02:42]}  Bg7 {[%clk 0:02:33]} 9. c3 {[%clk 0:02:28]}  cxd4 {[%clk 0:02:10]} 10. cxd4 {[%clk 0:02:29]}  Nc6 {[%clk 0:02:04]} 11. Qe2 {[%clk 0:01:54]}  Bg4 {[%clk 0:01:58]} 12. Bb5 {[%clk 0:01:04]}  dxe5 {[%clk 0:01:23]} 13. dxe5 {[%clk 0:00:58]}  O-O {[%clk 0:01:18]} 14. Bxc6 {[%clk 0:00:57]}  bxc6 {[%clk 0:01:18]} 15. O-O {[%clk 0:00:56]}  Rb8 {[%clk 0:01:18]} 16. h3 {[%clk 0:00:53]}  Bf5 {[%clk 0:01:12]} 17. Rfc1 {[%clk 0:00:50]}  Rxb2 {[%clk 0:01:10]} 18. Rxc6 {[%clk 0:00:41]}  Qd5 {[%clk 0:01:09]} 19. Rac1 {[%clk 0:00:11]}  Rd8 {[%clk 0:01:08]} 20. g4 {[%clk 0:00:06]}  Bd3 {[%clk 0:00:42]} 21. Qe3 {[%clk 0:00:06]}  Qxa2 {[%clk 0:00:41]} 22. Rc8 {[%clk 0:00:05]}  Qd5 {[%clk 0:00:19]} 23. Rxd8+ {[%clk 0:00:05]}  Qxd8 {[%clk 0:00:20]} 24. Qxa7 {[%clk 0:00:06]}  Kh7 {[%clk 0:00:17]} 25. Qe3 {[%clk 0:00:06]}  Ba6 {[%clk 0:00:17]} 26. Rd1 {[%clk 0:00:06]}  Bb7 {[%clk 0:00:17]} 27. Re1 {[%clk 0:00:06]}  Qd5 {[%clk 0:00:16]} 28. Kh2 {[%clk 0:00:04]}  Rxd2 {[%clk 0:00:15]} 29. Qxd2 {[%clk 0:00:03]}  Qxf3 {[%clk 0:00:15]} 30. Rg1 {[%clk 0:00:03]}  Bxe5+ {[%clk 0:00:14]} 0-1


[Site "https://www.chess.com"]

[Event "Titled Tuesday Blitz August 1 Early 2023"]
[White "Ljukin, Sergei"]
[Black "Shapiro, Daniel"]
[WhiteFideId "14102200"]
[BlackFideId "2001780"]
[WhiteElo "2488"]
[BlackElo "2359"]
[Result "1-0"]
[Round "6"]
[TimeControl "180+1"]
[Date "2023.08.01"]
[WhiteClock "0:00:18"]
[BlackClock "0:00:06"]
[Board "164"]

1. e4 {[%clk 0:02:48]}  c5 {[%clk 0:02:58]} 2. Nf3 {[%clk 0:02:47]}  d6 {[%clk 0:02:58]} 3. d4 {[%clk 0:02:48]}  cxd4 {[%clk 0:02:59]} 4. Nxd4 {[%clk 0:02:49]}  Nf6 {[%clk 0:02:59]} 5. Nc3 {[%clk 0:02:49]}  Nc6 {[%clk 0:02:59]} 6. Bc4 {[%clk 0:02:47]}  Qb6 {[%clk 0:02:59]} 7. Nb3 {[%clk 0:02:46]}  e6 {[%clk 0:02:59]} 8. Bg5 {[%clk 0:02:46]}  Be7 {[%clk 0:02:43]} 9. Bxf6 {[%clk 0:02:44]}  gxf6 {[%clk 0:02:41]} 10. Qh5 {[%clk 0:02:43]}  a6 {[%clk 0:02:36]} 11. Rf1 {[%clk 0:02:41]}  Ne5 {[%clk 0:02:36]} 12. Be2 {[%clk 0:02:40]}  Qc7 {[%clk 0:02:13]} 13. f4 {[%clk 0:02:40]}  Nc4 {[%clk 0:02:13]} 14. Bxc4 {[%clk 0:02:32]}  Qxc4 {[%clk 0:02:14]} 15. O-O-O {[%clk 0:02:25]}  b5 {[%clk 0:02:00]} 16. f5 {[%clk 0:02:02]}  b4 {[%clk 0:01:48]} 17. Na4 {[%clk 0:01:59]}  Qxe4 {[%clk 0:01:27]} 18. fxe6 {[%clk 0:01:47]}  Bxe6 {[%clk 0:01:02]} 19. Rde1 {[%clk 0:01:41]}  Qg6 {[%clk 0:00:56]} 20. Qf3 {[%clk 0:01:30]}  Rc8 {[%clk 0:00:54]} 21. Nd4 {[%clk 0:01:30]}  O-O {[%clk 0:00:48]} 22. g4 {[%clk 0:00:49]}  Rc4 {[%clk 0:00:17]} 23. Nf5 {[%clk 0:00:49]}  Bd8 {[%clk 0:00:14]} 24. Nb6 {[%clk 0:00:34]}  Bxb6 {[%clk 0:00:11]} 25. Ne7+ {[%clk 0:00:34]}  Kg7 {[%clk 0:00:10]} 26. Nxg6 {[%clk 0:00:34]}  hxg6 {[%clk 0:00:11]} 27. Qxf6+ {[%clk 0:00:31]}  Kg8 {[%clk 0:00:11]} 28. Rxe6 {[%clk 0:00:23]}  Bd4 {[%clk 0:00:06]} 29. Qf3 {[%clk 0:00:18]} 1-0


[Site "https://www.chess.com"]